fUSD/lending_fUSD_20241203
["ID","MTS","AMOUNT","RATE_DAILY","PERIOD"]
[344045866,1733246342408,-500.0,0.00025273,120]
[344045867,1733246342449,-500.0,0.00025273,120]
[344045868,1733246342492,-822.2,0.00025273,120]
[344045869,1733246342534,-500.0,0.00025273,120]
[344045870,1733246342575,-500.0,0.00025273,120]
[344045871,1733246342618,-500.0,0.00025273,120]
[344045872,1733246342660,-1591.69,0.00025273,120]
[344045873,1733246342701,-500.0,0.00025273,120]
[344045874,1733246342742,-500.0,0.00025273,120]
[344045875,1733246342787,-619.28325569,0.00025273,120]
[344045876,1733246343154,-736.69,0.00025273,120]
[344045877,1733246343200,-502.14,0.00025273,120]
[344045878,1733246343244,-500.0,0.00025273,120]
[344045879,1733246343288,-500.0,0.00025273,120]
[344045880,1733246343332,-1198.01,0.00025273,120]
[344045881,1733246343378,-500.0,0.00025273,120]
[344045882,1733246343426,-1076.68,0.00025273,120]
[344045883,1733246343472,-500.0,0.00025273,120]
[344045884,1733246343517,-500.0,0.00025273,120]
[344045885,1733246343568,-500.0,0.00025273,120]
[344045886,1733246343614,-1389.06,0.00025273,120]
[344045887,1733246343661,-1454.71,0.00025273,120]
[344045888,1733246343705,-2172.48,0.00025273,120]
[344045889,1733246343757,-597.38,0.00025273,120]
[344045890,1733246343803,-1396.93,0.00025273,120]
[344045891,1733246343848,-653.9,0.00025273,120]
[344045892,1733246343898,-967.04,0.00025273,120]
[344045893,1733246343944,-500.0,0.00025273,120]
[344045894,1733246343988,-1074.12,0.00025273,90]
[344045895,1733246344034,-713.88,0.00025273,120]
[344045896,1733246344077,-500.0,0.00025273,30]
[344045897,1733246344126,-500.0,0.00025273,120]
[344045898,1733246344171,-694.62,0.00025273,120]
[344045899,1733246344216,-734.36,0.00025273,120]
[344045900,1733246344262,-500.0,0.00025273,120]
[344045901,1733246344308,-1026.67,0.00025273,120]
[344045902,1733246344352,-574.63,0.00025273,120]
[344045903,1733246344401,-500.0,0.00025273,120]
[344045904,1733246344447,-1032.38,0.00025273,120]
[344045905,1733246344492,-1370.44,0.00025273,120]
[344045906,1733246344535,-500.0,0.00025273,120]
[344045907,1733246344577,-504.22227539,0.00025273,120]
[344045908,1733246344619,-500.0,0.00025273,120]
[344045909,1733246344660,-500.0,0.00025273,60]
[344045910,1733246344698,-500.0,0.00025273,120]
[344045911,1733246344739,-5000.0,0.00025273,120]
[344045912,1733246344777,-878.56,0.00025273,120]
[344045913,1733246344816,-500.0,0.00025273,120]
[344045914,1733246344858,-500.0,0.00025273,120]
[344045915,1733246344903,-500.0,0.00025273,120]
[344045916,1733246344945,-2000.1,0.00025273,120]
[344045917,1733246344988,-1391.24,0.00025273,120]
[344045918,1733246345040,-1091.32,0.00025273,120]
[344045919,1733246345084,-500.0,0.00025273,120]
[344045920,1733246345128,-500.0,0.00025273,120]
[344045921,1733246345171,-500.0,0.00025273,120]
[344045922,1733246345213,-861.77,0.00025273,120]
[344045923,1733246345255,-500.0,0.00025273,120]
[344045924,1733246345296,-500.0,0.00025273,120]
[344045925,1733246345339,-1022.05,0.00025273,120]
[344045926,1733246345381,-500.0,0.00025273,120]
[344045927,1733246345423,-529.95,0.00025273,120]
[344045928,1733246345464,-1890.66,0.00025273,120]
[344045929,1733246345506,-1489.2,0.00025273,120]
[344045930,1733246345547,-1145.75,0.00025273,120]
[344045931,1733246345588,-500.0,0.00025273,120]
[344045932,1733246345630,-500.0,0.00025273,120]
[344045933,1733246345671,-500.0,0.00025273,120]
[344045934,1733246345712,-500.0,0.00025273,120]
[344045935,1733246345752,-1081.55,0.00025273,120]
[344045936,1733246345792,-500.0,0.00025273,120]
[344045937,1733246345831,-500.0,0.00025273,120]
[344045938,1733246345875,-1143.39,0.00025273,120]
[344045939,1733246345920,-500.0,0.00025273,120]
[344045940,1733246345961,-500.0,0.00025273,120]
[344045941,1733246346002,-500.0,0.00025273,120]
[344045942,1733246346042,-500.0,0.00025273,120]
[344045943,1733246346084,-500.0,0.00025273,120]
[344045944,1733246346130,-500.0,0.00025273,120]
[344045945,1733246346171,-500.0,0.00025273,120]
[344045946,1733246346213,-500.0,0.00025273,120]
[344045947,1733246346255,-500.0,0.00025273,120]
[344045948,1733246346302,-658.09,0.00025273,120]
[344045949,1733246346347,-500.64,0.00025273,120]
[344045950,1733246346391,-500.0,0.00025273,120]
[344045951,1733246346437,-1250.2,0.00025273,120]
[344045952,1733246346484,-1159.12,0.00025273,120]
[344045953,1733246346530,-895.49,0.00025273,120]
[344045954,1733246346576,-619.42,0.00025273,120]
[344045955,1733246346625,-500.0,0.00025273,120]
[344045956,1733246346670,-501.52,0.00025273,120]
[344045957,1733246346714,-500.0,0.00025273,120]
[344045958,1733246346758,-1620.27,0.00025273,120]
[344045959,1733246346804,-1567.85,0.00025273,120]
[344045960,1733246346854,-537.78,0.00025273,120]
[344045961,1733246346902,-1199.89,0.00025273,120]
[344045962,1733246346946,-500.0,0.00025273,120]
[344045963,1733246346989,-586.95,0.00025273,120]
[344045964,1733246347031,-500.0,0.00025273,120]
[344045965,1733246347074,-500.0,0.00025273,120]
[344045966,1733246347118,-500.0,0.00025273,120]
[344045967,1733246347167,-500.0,0.00025273,120]
[344045968,1733246347211,-500.0,0.00025273,120]
[344045969,1733246347252,-500.0,0.00025273,120]
[344045970,1733246347632,-500.0,0.00025273,120]
[344045971,1733246347676,-500.0,0.00025273,120]
[344045972,1733246347719,-759.76,0.00025273,120]
[344045973,1733246347763,-500.0,0.00025273,120]
[344045974,1733246347805,-500.0,0.00025273,120]
[344045975,1733246347852,-913.66,0.00025273,120]
[344045976,1733246347898,-500.0,0.00025273,120]
[344045977,1733246347942,-640.92,0.00025273,120]
[344045978,1733246347984,-500.0,0.00025273,120]
[344045979,1733246348028,-500.0,0.00025273,120]
[344045980,1733246348071,-500.0,0.00025273,120]
[344045981,1733246348116,-1088.27,0.00025273,120]
[344045982,1733246348165,-500.0,0.00025273,120]
[344045983,1733246348209,-500.0,0.00025273,120]
[344045984,1733246348253,-687.1,0.00025273,120]
[344045985,1733246348297,-500.0,0.00025273,120]
[344045986,1733246348343,-500.0,0.00025273,120]
[344045987,1733246348388,-500.0,0.00025273,120]
[344045988,1733246348433,-500.0,0.00025273,120]
[344045989,1733246348478,-616.18,0.00025273,120]
[344045990,1733246348522,-500.0,0.00025273,120]
[344045991,1733246348566,-1067.59,0.00025273,120]
[344045992,1733246348608,-500.0,0.00025273,120]
[344045993,1733246348656,-500.0,0.00025273,120]
[344045994,1733246348701,-500.0,0.00025273,120]
[344045995,1733246348744,-968.88,0.00025273,120]
[344045996,1733246348788,-912.87,0.00025273,120]
[344045997,1733246348834,-500.0,0.00025273,120]
[344045998,1733246348884,-500.0,0.00025273,120]
[344045999,1733246348930,-595.27,0.00025273,120]
[344046000,1733246348972,-500.0,0.00025273,120]
[344046001,1733246349014,-1065.93,0.00025273,120]
[344046002,1733246349057,-1172.97,0.00025273,120]
[344046003,1733246349102,-1328.5,0.00025273,120]
[344046004,1733246349151,-500.0,0.00025273,120]
[344046005,1733246349195,-500.0,0.00025273,120]
[344046006,1733246349242,-500.0,0.00025273,120]
[344046007,1733246349287,-500.0,0.00025273,120]
[344046008,1733246349333,-581.2,0.00025273,120]
[344046009,1733246349381,-500.0,0.00025273,120]
[344046010,1733246349426,-2214.54,0.00025273,120]
[344046011,1733246349485,-500.0,0.00025273,120]
[344046012,1733246349531,-700.0,0.00025273,120]
[344046013,1733246349576,-524.63,0.00025273,120]
[344046014,1733246349625,-500.0,0.00025273,120]
[344046015,1733246349670,-500.0,0.00025273,120]
[344046016,1733246349715,-1166.44,0.00025273,120]
[344046017,1733246349758,-500.0,0.00025273,120]
[344046018,1733246349801,-500.0,0.00025273,120]
[344046019,1733246349842,-2907.2,0.00025273,120]
[344046020,1733246349890,-500.0,0.00025273,120]
[344046021,1733246349934,-1573.71,0.00025273,120]
[344046022,1733246349979,-500.0,0.00025273,120]
[344046023,1733246350021,-984.46,0.00025273,120]
[344046024,1733246350064,-766.88,0.00025273,120]
[344046025,1733246350106,-610.44,0.00025273,120]
[344046026,1733246350150,-500.0,0.00025273,120]
[344046027,1733246350193,-1119.29,0.00025273,120]
[344046028,1733246350235,-600.27556882,0.00025273,120]
[344046029,1733246350277,-1738.2,0.00025273,120]
[344046030,1733246350324,-500.0,0.00025273,120]
[344046031,1733246350369,-500.0,0.00025273,120]
[344046032,1733246350420,-968.26,0.00025273,120]
[344046033,1733246350467,-617.80245314,0.00025273,120]
[344046034,1733246350513,-500.0,0.00025273,120]
[344046035,1733246350558,-500.0,0.00025273,120]
[344046036,1733246350602,-500.0,0.00025273,120]
[344046037,1733246350650,-500.0,0.00025273,120]
[344046038,1733246350696,-500.0,0.00025273,120]
[344046039,1733246350739,-500.0,0.00025273,120]
[344046040,1733246350782,-657.41,0.00025273,120]
[344046041,1733246350824,-500.0,0.00025273,120]
[344046042,1733246350873,-3036.77,0.00025273,120]
[344046043,1733246350916,-500.0,0.00025273,120]
[344046044,1733246350962,-500.0,0.00025273,120]
[344046045,1733246351004,-1098.3,0.00025273,60]
[344046046,1733246351046,-500.0,0.00025273,120]
[344046047,1733246351089,-500.0,0.00025273,120]
[344046048,1733246351135,-1269.11,0.00025273,120]
[344046049,1733246351178,-1576.97,0.00025273,120]
[344046050,1733246351227,-500.0,0.00025273,120]
[344046051,1733246351276,-1001.92,0.00025273,120]
[344046052,1733246351324,-531.41,0.00025273,120]
[344046053,1733246351376,-1168.12,0.00025273,120]
[344046054,1733246351425,-892.74,0.00025273,120]
[344046055,1733246351471,-500.0,0.00025273,120]
[344046056,1733246351516,-1046.07,0.00025273,120]
[344046057,1733246351560,-500.0,0.00025273,120]
[344046058,1733246351603,-500.0,0.00025273,120]
[344046059,1733246351644,-977.95,0.00025273,120]
[344046060,1733246351686,-1056.42,0.00025273,120]
[344046061,1733246351728,-500.0,0.00025273,120]
[344046062,1733246351768,-500.0,0.00025273,120]
[344046063,1733246351808,-500.0,0.00025273,120]
[344046064,1733246352268,-500.0,0.00025273,120]
[344046065,1733246352309,-1532.17,0.00025273,120]
[344046066,1733246352348,-500.0,0.00025273,120]
[344046067,1733246352388,-500.0,0.00025273,120]
[344046068,1733246352428,-500.0,0.00025273,120]
[344046069,1733246352472,-1082.12,0.00025273,120]
[344046070,1733246352512,-656.37,0.00025273,120]
[344046071,1733246352553,-500.0,0.00025273,120]
[344046072,1733246352595,-500.0,0.00025273,120]
[344046073,1733246352635,-500.0,0.00025273,120]
[344046074,1733246352674,-1147.0,0.00025273,120]
[344046075,1733246352715,-517.62,0.00025273,120]
[344046076,1733246352754,-500.0,0.00025273,120]
[344046077,1733246352791,-500.0,0.00025273,120]
[344046078,1733246352829,-500.0,0.00025273,120]
[344046079,1733246352867,-500.0,0.00025273,120]
[344046080,1733246352911,-826.59,0.00025273,120]
[344046081,1733246352950,-500.0,0.00025273,120]
[344046082,1733246352990,-711.9,0.00025273,120]
[344046083,1733246353038,-1104.52,0.00025273,120]
[344046084,1733246353081,-500.0,0.00025273,120]
[344046085,1733246353125,-500.0,0.00025273,120]
[344046086,1733246353167,-786.04,0.00025273,120]
[344046087,1733246353209,-546.23,0.00025273,120]
[344046088,1733246353251,-500.0,0.00025273,120]
[344046089,1733246353291,-500.0,0.00025273,120]
[344046090,1733246353334,-1161.29,0.00025273,120]
[344046091,1733246353382,-929.6,0.00025273,120]
[344046092,1733246353427,-2145.87,0.00025273,120]
[344046093,1733246353469,-500.0,0.00025273,120]
[344046094,1733246353514,-734.94,0.00025273,120]
[344046095,1733246353561,-1206.09,0.00025273,120]
[344046096,1733246353603,-500.0,0.00025273,120]
[344046097,1733246353644,-500.0,0.00025273,120]
[344046098,1733246353685,-1408.92,0.00025273,120]
[344046099,1733246353726,-500.0,0.00025273,120]
[344046100,1733246353765,-995.4,0.00025273,120]
[344046101,1733246353803,-500.0,0.00025273,120]
[344046102,1733246353845,-937.3,0.00025273,120]
[344046103,1733246353887,-1197.81,0.00025273,120]
[344046104,1733246353932,-500.0,0.00025273,120]
[344046105,1733246353973,-911.03,0.00025273,120]
[344046106,1733246354016,-566.13,0.00025273,120]
[344046107,1733246354059,-500.0,0.00025273,120]
[344046108,1733246354102,-500.0,0.00025273,120]
[344046109,1733246354146,-2095.87,0.00025273,120]
[344046110,1733246354191,-500.0,0.00025273,120]
[344046111,1733246354236,-586.32,0.00025273,120]
[344046112,1733246354279,-500.0,0.00025273,120]
[344046113,1733246354321,-500.0,0.00025273,120]
[344046114,1733246354362,-500.0,0.00025273,120]
[344046115,1733246354407,-1203.53,0.00025273,120]
[344046116,1733246354449,-879.25,0.00025273,120]
[344046117,1733246354492,-500.0,0.00025273,120]
[344046118,1733246354534,-500.0,0.00025273,120]
[344046119,1733246354576,-500.0,0.00025273,120]
[344046120,1733246354619,-500.0,0.00025273,120]
[344046121,1733246354668,-1189.15,0.00025273,120]
[344046122,1733246354710,-500.0,0.00025273,120]
[344046123,1733246354752,-841.7,0.00025273,120]
[344046124,1733246354793,-500.0,0.00025273,120]
[344046125,1733246354841,-1381.63,0.00025273,120]
[344046126,1733246354886,-500.0,0.00025273,120]
[344046127,1733246354932,-500.0,0.00025273,120]
[344046128,1733246354978,-4134.18,0.00025273,120]
[344046129,1733246355023,-769.58,0.00025273,120]
[344046130,1733246355065,-500.0,0.00025273,120]
[344046131,1733246355107,-1163.73,0.00025273,120]
[344046132,1733246355152,-1033.99,0.00025273,120]
[344046133,1733246355195,-500.0,0.00025273,120]
[344046134,1733246355240,-711.8,0.00025273,120]
[344046135,1733246355283,-500.0,0.00025273,120]
[344046136,1733246355327,-500.0,0.00025273,120]
[344046137,1733246355371,-500.0,0.00025273,120]
[344046138,1733246355421,-1440.43,0.00025273,120]
[344046139,1733246355466,-500.0,0.00025273,120]
[344046140,1733246355510,-500.0,0.00025273,120]
[344046141,1733246355552,-964.04,0.00025273,120]
[344046142,1733246355594,-956.97,0.00025273,120]
[344046143,1733246355637,-2860.22,0.00025273,120]
[344046144,1733246355681,-500.0,0.00025273,120]
[344046145,1733246355727,-500.0,0.00025273,120]
[344046146,1733246355772,-500.0,0.00025273,120]
[344046147,1733246355815,-1892.14,0.00025273,120]
[344046148,1733246355859,-1196.82,0.00025273,120]
[344046149,1733246355903,-1032.33,0.00025273,120]
[344046150,1733246355944,-986.17,0.00025273,120]
[344046151,1733246355986,-500.0,0.00025273,120]
[344046152,1733246356030,-1192.12,0.00025273,120]
[344046153,1733246356070,-565.71,0.00025273,120]
[344046154,1733246356113,-500.0,0.00025273,120]
[344046155,1733246356164,-1000.0,0.00025273,120]
[344046156,1733246356208,-1124.3,0.00025273,120]
[344046157,1733246356252,-500.0,0.00025273,120]
[344046158,1733246356668,-4430.69,0.00025273,120]
[344046159,1733246356710,-1043.3,0.00025273,120]
[344046160,1733246356750,-2334.8,0.00025273,120]
[344046161,1733246356789,-500.0,0.00025273,120]
[344046162,1733246356827,-500.0,0.00025273,120]
[344046163,1733246356867,-1119.9,0.00025273,120]
[344046164,1733246356909,-1596.23,0.00025273,120]
[344046165,1733246356948,-511.79003841,0.00025273,120]
[344046166,1733246356987,-714.04,0.00025273,120]
[344046167,1733246357025,-2640.16,0.00025273,120]
[344046168,1733246357063,-500.0,0.00025273,120]
[344046169,1733246357101,-1268.04,0.00025273,120]
[344046170,1733246357139,-500.0,0.00025273,120]
[344046171,1733246357178,-903.12,0.00025273,120]
[344046172,1733246357218,-500.0,0.00025273,120]
[344046173,1733246357255,-500.0,0.00025273,120]
[344046174,1733246357292,-873.59,0.00025273,120]
[344046175,1733246357329,-1040.74,0.00025273,120]
[344046176,1733246357367,-1862.08,0.00025273,120]
[344046177,1733246357406,-1386.44,0.00025273,120]
[344046178,1733246357442,-500.0,0.00025273,120]
[344046179,1733246357489,-2042.79,0.00025273,120]
[344046180,1733246357536,-485.56035675,0.00025273,120]
[344046181,1733246357583,-500.0,0.00025273,120]
[344046182,1733246357636,-968.44,0.00025273,120]
[344046183,1733246357682,-1237.18,0.00025273,120]
[344046184,1733246357726,-500.0,0.00025273,120]
[344046185,1733246357769,-1457.62,0.00025273,120]
[344046186,1733246357811,-995.89,0.00025273,120]
[344046187,1733246357853,-500.0,0.00025273,120]
[344046188,1733246357895,-500.0,0.00025273,120]
[344046189,1733246357936,-2076.1,0.00025273,120]
[344046190,1733246357978,-500.0,0.00025273,120]
[344046191,1733246358020,-500.0,0.00025273,120]
[344046192,1733246358062,-967.71,0.00025273,120]
[344046193,1733246358105,-1517.53,0.00025273,120]
[344046194,1733246358148,-500.0,0.00025273,120]
[344046195,1733246358190,-500.0,0.00025273,120]
[344046196,1733246358230,-721.81,0.00025273,120]
[344046197,1733246358273,-500.0,0.00025273,120]
[344046198,1733246358314,-1554.28,0.00025273,120]
[344046199,1733246358358,-1934.64,0.00025273,120]
[344046200,1733246358402,-500.0,0.00025273,120]
[344046201,1733246358445,-1917.66,0.00025273,120]
[344046202,1733246358487,-500.0,0.00025273,120]
[344046203,1733246358529,-500.0,0.00025273,120]
[344046204,1733246358571,-1199.76,0.00025273,120]
[344046205,1733246358613,-1802.03,0.00025273,120]
[344046206,1733246358657,-2453.75,0.00025273,120]
[344046207,1733246358698,-868.95,0.00025273,120]
[344046208,1733246358741,-500.0,0.00025273,120]
[344046209,1733246358783,-746.75,0.00025273,120]
[344046210,1733246358825,-500.0,0.00025273,120]
[344046211,1733246358866,-500.0,0.00025273,120]
[344046212,1733246358911,-1270.46,0.00025273,120]
[344046213,1733246358955,-500.0,0.00025273,120]
[344046214,1733246358997,-500.0,0.00025273,120]
[344046215,1733246359041,-500.0,0.00025273,120]
[344046216,1733246359085,-1120.88,0.00025273,120]
[344046217,1733246359128,-500.0,0.00025273,120]
[344046218,1733246359175,-500.0,0.00025273,120]
[344046219,1733246359219,-500.0,0.00025273,120]
[344046220,1733246359262,-704.44,0.00025273,120]
[344046221,1733246359305,-500.0,0.00025273,120]
[344046222,1733246359349,-500.0,0.00025273,120]
[344046223,1733246359393,-500.0,0.00025273,120]
[344046224,1733246359438,-1779.62,0.00025273,120]
[344046225,1733246359483,-1089.52,0.00025273,120]
[344046226,1733246359529,-500.0,0.00025273,120]
[344046227,1733246359573,-704.69,0.00025273,120]
[344046228,1733246359616,-500.0,0.00025273,120]
[344046229,1733246359665,-1130.03,0.00025273,120]
[344046230,1733246359709,-686.85,0.00025273,120]
[344046231,1733246359752,-500.0,0.00025273,120]
[344046232,1733246359796,-1294.83,0.00025273,120]
[344046233,1733246359837,-4085.09,0.00025273,120]
[344046234,1733246359881,-500.0,0.00025273,120]
[344046235,1733246359928,-671.3,0.00025273,120]
[344046236,1733246359974,-500.0,0.00025273,120]
[344046237,1733246360027,-500.0,0.00025273,120]
[344046238,1733246360069,-2136.24,0.00025273,120]
[344046239,1733246360110,-500.0,0.00025273,120]
[344046240,1733246360151,-500.0,0.00025273,120]
[344046241,1733246360192,-500.0,0.00025273,120]
[344046242,1733246360234,-500.0,0.00025273,120]
[344046243,1733246360273,-510.86818381,0.00025273,120]
[344046244,1733246360312,-765.68,0.00025273,120]
[344046245,1733246360353,-500.0,0.00025273,120]
[344046246,1733246360393,-1039.96,0.00025273,120]
[344046247,1733246360434,-500.0,0.00025273,120]
[344046248,1733246360476,-500.0,0.00025273,120]
[344046249,1733246360518,-1616.92,0.00025273,120]
[344046250,1733246360559,-500.0,0.00025273,120]
[344046251,1733246360602,-1080.5,0.00025273,120]
[344046252,1733246360645,-500.0,0.00025273,120]
[344046253,1733246360934,-1052.63,0.00025273,120]
[344046254,1733246360991,-2383.94,0.00025273,120]
[344046255,1733246361037,-500.0,0.00025273,120]
[344046256,1733246361082,-1730.26,0.00025273,120]
[344046257,1733246361127,-500.0,0.00025273,120]
[344046258,1733246361173,-500.0,0.00025273,120]
[344046259,1733246361217,-500.53,0.00025273,120]
[344046260,1733246361261,-1122.32,0.00025273,120]
[344046261,1733246361305,-500.0,0.00025273,120]
[344046262,1733246361349,-500.0,0.00025273,120]
[344046263,1733246361393,-2583.5,0.00025273,120]
[344046264,1733246361436,-500.0,0.00025273,120]
[344046265,1733246361481,-500.0,0.00025273,120]
[344046266,1733246361526,-500.0,0.00025273,120]
[344046267,1733246361569,-911.02,0.00025273,120]
[344046268,1733246361613,-1103.1,0.00025273,120]
[344046269,1733246361657,-1021.05,0.00025273,30]
[344046270,1733246361702,-2366.1,0.00025273,120]
[344046271,1733246361747,-3118.78,0.00025273,120]
[344046272,1733246361790,-500.0,0.00025273,120]
[344046273,1733246361834,-631.97,0.00025273,120]
[344046274,1733246361891,-1165.4,0.00025273,120]
[344046275,1733246361938,-601.06,0.00025273,120]
[344046276,1733246361983,-500.0,0.00025273,120]
[344046277,1733246362029,-500.0,0.00025273,120]
[344046278,1733246362074,-1441.14,0.00025273,120]
[344046279,1733246362119,-603.33,0.00025273,120]
[344046280,1733246362165,-500.0,0.00025273,120]
[344046281,1733246362209,-500.0,0.00025273,120]
[344046282,1733246362254,-500.0,0.00025273,120]
[344046283,1733246362301,-500.0,0.00025273,120]
[344046284,1733246362347,-500.0,0.00025273,120]
[344046285,1733246362395,-1010.34,0.00025273,120]
[344046286,1733246362440,-488.34022106,0.00025273,120]
[344046287,1733246362485,-500.0,0.00025273,120]
[344046288,1733246362530,-662.38,0.00025273,120]
[344046289,1733246362572,-500.0,0.00025273,120]
[344046290,1733246362613,-500.0,0.00025273,120]
[344046291,1733246362655,-5730.49,0.00025273,120]
[344046292,1733246362695,-583.44,0.00025273,120]
[344046293,1733246362741,-1243.02,0.00025273,120]
[344046294,1733246362783,-500.0,0.00025273,120]
[344046295,1733246362825,-912.68,0.00025273,120]
[344046296,1733246362867,-740.36,0.00025273,120]
[344046297,1733246362910,-500.0,0.00025273,120]
[344046298,1733246362952,-500.0,0.00025273,120]
[344046299,1733246362992,-1367.67,0.00025273,120]
[344046300,1733246363033,-1805.69,0.00025273,120]
[344046301,1733246363073,-500.0,0.00025273,120]
[344046302,1733246363116,-1197.8,0.00025273,120]
[344046303,1733246363158,-500.0,0.00025273,120]
[344046304,1733246363199,-500.0,0.00025273,120]
[344046305,1733246363241,-649.17,0.00025273,120]
[344046306,1733246363284,-500.0,0.00025273,120]
[344046307,1733246363330,-500.0,0.00025273,120]
[344046308,1733246363375,-1834.27,0.00025273,120]
[344046309,1733246363425,-1046.06,0.00025273,120]
[344046310,1733246363469,-500.0,0.00025273,120]
[344046311,1733246363514,-1685.63,0.00025273,120]
[344046312,1733246363557,-500.0,0.00025273,120]
[344046313,1733246363602,-500.0,0.00025273,120]
[344046314,1733246363645,-1052.8,0.00025273,120]
[344046315,1733246363687,-2004.19,0.00025273,120]
[344046316,1733246363730,-724.32,0.00025273,120]
[344046317,1733246363772,-500.0,0.00025273,120]
[344046318,1733246363815,-566.15,0.00025273,120]
[344046319,1733246363859,-562.64,0.00025273,120]
[344046320,1733246363904,-1476.0,0.00025273,120]
[344046321,1733246363945,-500.0,0.00025273,120]
[344046322,1733246363987,-2578.73,0.00025273,120]
[344046323,1733246364029,-500.0,0.00025273,120]
[344046324,1733246364073,-2372.0,0.00025273,120]
[344046325,1733246364116,-500.0,0.00025273,120]
[344046326,1733246364158,-500.0,0.00025273,120]
[344046327,1733246364200,-1428.17,0.00025273,120]
[344046328,1733246364242,-500.0,0.00025273,120]
[344046329,1733246364284,-594.59,0.00025273,30]
[344046330,1733246364329,-500.0,0.00025273,120]
[344046331,1733246364371,-500.0,0.00025273,120]
[344046332,1733246364414,-2195.87,0.00025273,120]
[344046333,1733246364455,-1367.25,0.00025273,120]
[344046334,1733246364499,-500.0,0.00025273,120]
[344046335,1733246364540,-1134.81,0.00025273,120]
[344046336,1733246364581,-500.0,0.00025273,120]
[344046337,1733246364620,-806.94,0.00025273,120]
[344046338,1733246364659,-776.79,0.00025273,120]
[344046339,1733246364698,-500.0,0.00025273,120]
[344046340,1733246364737,-1493.12,0.00025273,120]
[344046341,1733246364776,-500.0,0.00025273,120]
[344046342,1733246364815,-1348.93,0.00025273,120]
[344046343,1733246364854,-500.0,0.00025273,120]
[344046344,1733246364893,-500.0,0.00025273,120]
[344046345,1733246364933,-2024.09,0.00025273,120]
[344046346,1733246364974,-500.0,0.00025273,120]
[344046347,1733246365361,-500.0,0.00025273,120]
[344046348,1733246365404,-1036.55,0.00025273,120]
[344046349,1733246365444,-1164.16,0.00025273,120]
[344046350,1733246365483,-500.0,0.00025273,120]
[344046351,1733246365522,-1340.97,0.00025273,120]
[344046352,1733246365561,-1587.69,0.00025273,120]
[344046353,1733246365602,-500.0,0.00025273,120]
[344046354,1733246365641,-500.0,0.00025273,120]
[344046355,1733246365682,-500.0,0.00025273,120]
[344046356,1733246365722,-691.12,0.00025273,120]
[344046357,1733246365761,-1148.63,0.00025273,120]
[344046358,1733246365799,-500.0,0.00025273,120]
[344046359,1733246365837,-2483.96,0.00025273,120]
[344046360,1733246365876,-579.80450399,0.00025273,120]
[344046361,1733246365914,-500.0,0.00025273,120]
[344046362,1733246365953,-932.01,0.00025273,120]
[344046363,1733246365994,-1415.65,0.00025273,120]
[344046364,1733246366034,-1100.23,0.00025273,120]
[344046365,1733246366076,-4415.58,0.00025273,120]